fUSD/lending_fUSD_20260506
["ID","MTS","AMOUNT","RATE_DAILY","PERIOD"]
[421701992,1778047905000,-603.45144378,0.00038395,2]
[421701987,1778047905000,-491.85958444,0.00038395,2]
[421701996,1778047905000,-526.86051061,0.00038395,2]
[421701998,1778047905000,-1065.13491717,0.00038395,2]
[421702008,1778047905000,-300.0,0.00038395,2]
[421702001,1778047905000,-724.83131769,0.00038395,2]
[421701999,1778047905000,-891.9241332,0.00038395,2]
[421702010,1778047905000,-300.0,0.00038395,2]
[421701997,1778047905000,-300.0,0.00038395,2]
[421702000,1778047905000,-300.00000001,0.00038395,2]
[421701974,1778047905000,-345.80121438,0.00038395,2]
[421701993,1778047905000,-300.0,0.00038395,2]
[421701985,1778047905000,-300.0,0.00038395,2]
[421701962,1778047905000,-1050.0,0.00038356,2]
[421701970,1778047905000,-560.6948813,0.00038395,2]
[421702009,1778047905000,-300.0,0.00038395,2]
[421701947,1778047905000,-1500.0,0.00037808,5]
[421701946,1778047905000,-1000.0,0.000378,7]
[421701948,1778047905000,-591.9658418,0.0003797,5]
[421701949,1778047905000,-159.74113112,0.00038082,5]
[421701961,1778047905000,-754.0,0.00038356,2]
[421701950,1778047905000,-2502.4,0.00038125,30]
[421701952,1778047905000,-206.73023644,0.000383,5]
[421701959,1778047905000,-150.0,0.00038356,120]
[421701954,1778047905000,-500.0,0.000383,5]
[421701955,1778047905000,-73732.17,0.000383,7]
[421701951,1778047905000,-1098.137981,0.000382,120]
[421701958,1778047905000,-160.7,0.00038356,30]
[421701956,1778047905000,-5229.91238371,0.0003832,2]
[421701957,1778047905000,-2097.7242,0.00038351,2]
[421701960,1778047905000,-800.0,0.00038356,2]
[421701953,1778047905000,-500.0,0.000383,5]
[421701966,1778047905000,-261.0,0.00038356,2]
[421701963,1778047905000,-1050.0,0.00038356,2]
[421701965,1778047905000,-200.0,0.00038356,2]
[421701967,1778047905000,-550.0,0.00038356,2]
[421701973,1778047905000,-1092.83356842,0.00038395,2]
[421701969,1778047905000,-543.79786294,0.00038395,2]
[421701968,1778047905000,-300.0,0.00038395,2]
[421701971,1778047905000,-300.0,0.00038395,2]
[421701964,1778047905000,-936.0,0.00038356,2]
[421701972,1778047905000,-300.0,0.00038395,2]
[421701978,1778047905000,-300.0,0.00038395,2]
[421702003,1778047905000,-300.0,0.00038395,2]
[421702031,1778047905000,-463.08064867,0.00038395,2]
[421702002,1778047905000,-309.13065885,0.00038395,2]
[421702038,1778047905000,-300.0,0.00038395,2]
[421702037,1778047905000,-300.0,0.00038395,2]
[421702040,1778047905000,-300.0,0.00038395,2]
[421702039,1778047905000,-300.0,0.00038395,2]
[421702042,1778047905000,-483.27319916,0.00038395,2]
[421702045,1778047905000,-300.0,0.00038395,2]
[421702044,1778047905000,-300.0,0.00038395,2]
[421702041,1778047905000,-300.0,0.00038395,2]
[421702043,1778047905000,-309.32134718,0.00038395,2]
[421702059,1778047905000,-300.0,0.00038395,2]
[421702049,1778047905000,-300.0,0.00038395,2]
[421702057,1778047905000,-300.0,0.00038395,2]
[421702058,1778047905000,-300.0,0.00038395,2]
[421702050,1778047905000,-489.59051486,0.00038395,2]
[421702048,1778047905000,-1092.83356842,0.00038395,2]
[421702052,1778047905000,-300.0,0.00038395,2]
[421702053,1778047905000,-300.0,0.00038395,2]
[421702051,1778047905000,-300.0,0.00038395,2]
[421702054,1778047905000,-300.0,0.00038395,2]
[421702055,1778047905000,-300.0,0.00038395,2]
[421702056,1778047905000,-300.0,0.00038395,2]
[421702060,1778047905000,-300.0,0.00038395,2]
[421702061,1778047905000,-300.0,0.00038395,2]
[421702066,1778047905000,-300.0,0.00038395,2]
[421702063,1778047905000,-491.85958444,0.00038395,2]
[421702064,1778047905000,-300.0,0.00038395,2]
[421702007,1778047905000,-300.06118393,0.00038395,2]
[421702035,1778047905000,-451.13853711,0.00038395,2]
[421702047,1778047905000,-300.0,0.00038395,2]
[421702062,1778047905000,-300.0,0.00038395,2]
[421702036,1778047905000,-300.0,0.00038395,2]
[421702046,1778047905000,-300.0,0.00038395,2]
[421702004,1778047905000,-301.2859328,0.00038395,2]
[421702006,1778047905000,-300.0,0.00038395,2]
[421702011,1778047905000,-474.98520692,0.00038395,2]
[421702013,1778047905000,-852.7601399,0.00038395,2]
[421702014,1778047905000,-300.0,0.00038395,2]
[421702015,1778047905000,-1793.38851355,0.00038395,2]
[421702017,1778047905000,-343.40295571,0.00038395,2]
[421702016,1778047905000,-300.0,0.00038395,2]
[421702012,1778047905000,-300.0,0.00038395,2]
[421702018,1778047905000,-300.0,0.00038395,2]
[421702019,1778047905000,-300.0,0.00038395,2]
[421702022,1778047905000,-300.0,0.00038395,2]
[421702005,1778047905000,-300.0,0.00038395,2]
[421702020,1778047905000,-1145.24599896,0.00038395,2]
[421702021,1778047905000,-309.07064608,0.00038395,2]
[421702028,1778047905000,-310.3725982,0.00038395,2]
[421702065,1778047905000,-300.0,0.00038395,2]
[421702026,1778047905000,-300.0,0.00038395,2]
[421702025,1778047905000,-300.0,0.00038395,2]
[421702027,1778047905000,-300.0,0.00038395,2]
[421702024,1778047905000,-300.0,0.00038395,2]
[421702023,1778047905000,-862.96230178,0.00038395,2]
[421702029,1778047905000,-300.0,0.00038395,2]
[421702033,1778047905000,-481.18706949,0.00038395,2]
[421702030,1778047905000,-300.0,0.00038395,2]
[421702032,1778047905000,-300.0,0.00038395,2]
[421702034,1778047905000,-300.0,0.00038395,2]
[421702103,1778047906000,-310.3725982,0.00038395,2]
[421702094,1778047906000,-1145.24599896,0.00038395,2]
[421702093,1778047906000,-300.0,0.00038395,2]
[421702102,1778047906000,-300.0,0.00038395,2]
[421702101,1778047906000,-300.0,0.00038395,2]
[421702099,1778047906000,-868.20760568,0.00038395,2]
[421702100,1778047906000,-300.0,0.00038395,2]
[421702106,1778047906000,-463.08064867,0.00038395,2]
[421702105,1778047906000,-300.0,0.00038395,2]
[421702095,1778047906000,-309.07064608,0.00038395,2]
[421702097,1778047906000,-862.96230178,0.00038395,2]
[421702111,1778047906000,-300.0,0.00038395,2]
[421702108,1778047906000,-481.18706949,0.00038395,2]
[421702109,1778047906000,-300.0,0.00038395,2]
[421702098,1778047906000,-300.0,0.00038395,2]
[421702107,1778047906000,-300.0,0.00038395,2]
[421702110,1778047906000,-451.13853711,0.00038395,2]
[421702120,1778047906000,-151.0,0.00038395,30]
[421702119,1778047906000,-151.0,0.00038395,30]
[421702118,1778047906000,-151.0,0.00038395,30]
[421702116,1778047906000,-300.0,0.00038395,2]
[421702091,1778047906000,-300.0,0.00038395,2]
[421702112,1778047906000,-300.0,0.00038395,2]
[421702104,1778047906000,-300.0,0.00038395,2]
[421702092,1778047906000,-343.40295571,0.00038395,2]
[421702078,1778047906000,-300.0,0.00038395,2]
[421702089,1778047906000,-300.0,0.00038395,2]
[421702113,1778047906000,-300.0,0.00038395,2]
[421702069,1778047906000,-603.45144378,0.00038395,2]
[421702072,1778047906000,-526.86051061,0.00038395,2]
[421702071,1778047906000,-300.0,0.00038395,2]
[421702070,1778047906000,-300.0,0.00038395,2]
[421702068,1778047906000,-300.0,0.00038395,2]
[421702067,1778047906000,-300.0,0.00038395,2]
[421702074,1778047906000,-1065.13491717,0.00038395,2]
[421702073,1778047906000,-529.86413524,0.00038395,2]
[421702075,1778047906000,-891.9241332,0.00038395,2]
[421702076,1778047906000,-309.13065885,0.00038395,2]
[421702077,1778047906000,-724.83131769,0.00038395,2]
[421702079,1778047906000,-301.2859328,0.00038395,2]
[421702082,1778047906000,-300.0,0.00038395,2]
[421702080,1778047906000,-300.0,0.00038395,2]
[421702081,1778047906000,-300.06118393,0.00038395,2]
[421702084,1778047906000,-300.0,0.00038395,2]
[421702083,1778047906000,-300.0,0.00038395,2]
[421702086,1778047906000,-474.98520692,0.00038395,2]
[421702096,1778047906000,-300.0,0.00038395,2]
[421702088,1778047906000,-300.0,0.00038395,2]
[421702085,1778047906000,-300.0,0.00038395,2]
[421702087,1778047906000,-852.7601399,0.00038395,2]
[421702090,1778047906000,-1793.38851355,0.00038395,2]
[421702115,1778047906000,-300.0,0.00038395,2]
[421702117,1778047906000,-151.0,0.00038395,30]
[421702160,1778047906000,-812.638477,0.00039412,7]
[421702147,1778047906000,-500.16742932,0.00038904,5]
[421702148,1778047906000,-161.49,0.00039,2]
[421702152,1778047906000,-178.21,0.00039083,60]
[421702151,1778047906000,-164.56,0.00039083,60]
[421702149,1778047906000,-164.56,0.00039083,60]
[421702156,1778047906000,-2000.0,0.000393,7]
[421702155,1778047906000,-152.0,0.00039286,8]
[421702157,1778047906000,-2097.7242,0.0003931,2]
[421702166,1778047906000,-151.0,0.00039412,30]
[421702159,1778047906000,-812.638477,0.00039412,7]
[421702162,1778047906000,-812.638477,0.00039412,7]
[421702164,1778047906000,-151.0,0.00039412,30]
[421702165,1778047906000,-151.0,0.00039412,30]
[421702158,1778047906000,-1098.137981,0.000394,120]
[421702161,1778047906000,-812.638477,0.00039412,7]
[421702163,1778047906000,-151.0,0.00039412,30]
[421702167,1778047906000,-151.0,0.00039412,30]
[421702172,1778047906000,-1920.959522,0.00039412,28]
[421702168,1778047906000,-153.968219,0.00039412,30]
[421702170,1778047906000,-1920.959522,0.00039412,28]
[421702169,1778047906000,-1920.959522,0.00039412,28]
[421702171,1778047906000,-1920.959522,0.00039412,28]
[421702114,1778047906000,-300.0,0.00038395,2]
[421702154,1778047906000,-156.48951136,0.00039261,120]
[421702142,1778047906000,-607.81341,0.00038864,30]
[421702150,1778047906000,-164.56,0.00039083,60]
[421702146,1778047906000,-151.0,0.00038864,30]
[421702122,1778047906000,-283.6996602,0.00038396,120]
[421702123,1778047906000,-210.1366791,0.00038396,120]
[421702121,1778047906000,-186.7459471,0.00038396,120]
[421702130,1778047906000,-631.75654827,0.00038562,120]
[421702128,1778047906000,-150.0,0.000385,120]
[421702127,1778047906000,-271.5036769,0.00038396,120]
[421702126,1778047906000,-701.6405734,0.00038396,120]
[421702144,1778047906000,-607.81341,0.00038864,30]
[421702131,1778047906000,-150.0,0.00038614,2]
[421702129,1778047906000,-15847.2472871,0.00038562,120]
[421702125,1778047906000,-500.0,0.00038396,120]
[421702132,1778047906000,-253.6098031,0.00038614,2]
[421702137,1778047906000,-1000.0,0.00038848,5]
[421702124,1778047906000,-331.5694761,0.00038396,120]
[421702135,1778047906000,-174.84,0.0003883,120]
[421702139,1778047906000,-4346.0,0.00038849,60]
[421702133,1778047906000,-192.0,0.00038663,90]
[421702134,1778047906000,-152.15955082,0.00038798,2]
[421702136,1778047906000,-1000.0,0.00038848,5]
[421702138,1778047906000,-4000.0,0.00038849,60]
[421702140,1778047906000,-1350.0,0.00038849,60]
[421702141,1778047906000,-1281.0,0.00038849,60]
[421702143,1778047906000,-607.81341,0.00038864,30]
[421702153,1778047906000,-500.0,0.00039206,120]
[421702145,1778047906000,-607.81341,0.00038864,30]
[421702215,1778047907000,-554.35,0.00040468,120]
[421702213,1778047907000,-150.0,0.00040313,2]
[421702212,1778047907000,-150.0,0.00040313,2]
[421702214,1778047907000,-554.35,0.00040368,120]
[421702210,1778047907000,-150.0,0.00040313,2]
[421702208,1778047907000,-2016.16990585,0.000403,30]
[421702206,1778047907000,-73732.17,0.000403,7]
[421702211,1778047907000,-150.0,0.00040313,2]
[421702207,1778047907000,-2016.16990587,0.000403,30]
[421702201,1778047907000,-554.35,0.00040268,120]
[421702227,1778047907000,-250.0,0.00040548,2]
[421702209,1778047907000,-2016.16990585,0.000403,30]
[421702217,1778047907000,-1098.137981,0.000405,120]
[421702229,1778047907000,-250.0,0.00040548,2]
[421702228,1778047907000,-250.0,0.00040548,2]
[421702218,1778047907000,-1247.3476,0.00040515,4]
[421702221,1778047907000,-1221.0,0.00040547,2]
[421702219,1778047907000,-1099.5765,0.00040515,4]
[421702222,1778047907000,-3398.0,0.00040547,2]
[421702216,1778047907000,-361.72528501,0.00040482,2]
[421702220,1778047907000,-217.90626702,0.00040544,2]
[421702226,1778047907000,-193.94104199,0.00040548,30]
[421702224,1778047907000,-150.0,0.00040548,30]
[421702225,1778047907000,-150.0,0.00040548,30]
[421702230,1778047907000,-260.05273032,0.00040548,2]
[421702202,1778047907000,-2097.7241,0.00040269,2]
[421702223,1778047907000,-150.0,0.00040548,30]
[421702200,1778047907000,-150.0,0.00040223,2]
[421702175,1778047907000,-1529.201548,0.00039412,30]
[421702199,1778047907000,-554.35,0.00040168,120]
[421702174,1778047907000,-1529.201548,0.00039412,30]
[421702177,1778047907000,-150.0,0.00039579,2]
[421702178,1778047907000,-266.35,0.000396,30]
[421702173,1778047907000,-1529.201548,0.00039412,30]
[421702179,1778047907000,-151.0,0.00039723,14]
[421702183,1778047907000,-250.17,0.00039925,30]
[421702182,1778047907000,-346.1528151,0.000399,120]
[421702181,1778047907000,-554.35,0.00039868,120]
[421702180,1778047907000,-310.0,0.00039791,65]
[421702184,1778047907000,-554.35,0.00039968,120]
[421702191,1778047907000,-400.729559,0.0004,30]
[421702192,1778047907000,-253.501076,0.0004,30]
[421702197,1778047907000,-174.84,0.0004006,120]
[421702190,1778047907000,-400.729559,0.0004,30]
[421702189,1778047907000,-400.729559,0.0004,30]
[421702187,1778047907000,-11996.04537072,0.0004,4]
[421702186,1778047907000,-161.49,0.0004,2]
[421702188,1778047907000,-400.729559,0.0004,30]
[421702194,1778047907000,-162.55277151,0.0004,3]
[421702193,1778047907000,-160.0,0.0004,120]
[421702203,1778047907000,-405.12,0.0004029,60]
[421702195,1778047907000,-158.0,0.0004,120]
[421702204,1778047907000,-3956.45,0.0004029,60]
[421702196,1778047907000,-192.0,0.00040027,2]
[421702198,1778047907000,-554.35,0.00040068,120]
[421702205,1778047907000,-27651.22,0.0004029,60]
[421702185,1778047907000,-153.0,0.0004,120]
[421702232,1778047907000,-150.0,0.00040548,60]
[421702176,1778047907000,-1529.201548,0.00039412,30]
[421702237,1778047907000,-500.0,0.00040548,60]
[421702264,1778047907000,-554.35,0.00040768,120]
[421702265,1778047907000,-153.0,0.000408,120]
[421702268,1778047907000,-156.48951136,0.00040939,120]
[421702267,1778047907000,-554.35,0.00040868,120]
[421702273,1778047907000,-700.0,0.00041003,21]
[421702272,1778047907000,-500.0,0.00041,45]
[421702266,1778047907000,-350.0,0.00040811,5]
[421702269,1778047907000,-136657.0,0.0004095,60]
[421702270,1778047907000,-554.35,0.00040968,120]
[421702275,1778047907000,-500.0,0.00041003,21]
[421702274,1778047907000,-520.12089416,0.00041003,21]
[421702277,1778047907000,-554.35,0.00041068,120]
[421702271,1778047907000,-20000.0,0.00041,2]
[421702284,1778047907000,-200.0,0.00041096,30]
[421702276,1778047907000,-1142.1,0.00041041,120]
[421702285,1778047907000,-200.0,0.00041096,30]
[421702280,1778047907000,-250.0,0.00041096,30]
[421702281,1778047907000,-250.0,0.00041096,30]
[421702283,1778047907000,-226.0,0.00041096,30]
[421702289,1778047907000,-175.627278,0.00041096,60]
[421702282,1778047907000,-159.0,0.00041096,30]
[421702286,1778047907000,-197.0,0.00041096,30]
[421702279,1778047907000,-263.0,0.00041096,30]
[421702288,1778047907000,-417.2856,0.00041096,120]
[421702287,1778047907000,-1560.0,0.00041096,120]
[421702231,1778047907000,-500.0,0.00040548,60]
[421702278,1778047907000,-192.0,0.00041079,90]
[421702263,1778047907000,-757.0,0.0004073,2]
[421702290,1778047907000,-175.627278,0.00041096,60]
[421702259,1778047907000,-3536.0,0.0004073,2]
[421702235,1778047907000,-203.08154012,0.00040548,60]
[421702234,1778047907000,-500.0,0.00040548,60]
[421702233,1778047907000,-500.0,0.00040548,60]
[421702239,1778047907000,-500.0,0.00040548,60]
[421702236,1778047907000,-500.0,0.00040548,60]
[421702238,1778047907000,-500.0,0.00040548,60]
[421702241,1778047907000,-500.0,0.00040548,60]
[421702257,1778047907000,-150.0,0.0004073,2]
[421702242,1778047907000,-500.0,0.00040548,60]
[421702243,1778047907000,-500.0,0.00040548,60]
[421702248,1778047907000,-500.0,0.00040548,60]
[421702247,1778047907000,-500.0,0.00040548,60]
[421702245,1778047907000,-500.0,0.00040548,60]
[421702240,1778047907000,-500.0,0.00040548,60]
[421702244,1778047907000,-500.0,0.00040548,60]
[421702258,1778047907000,-150.0,0.0004073,2]
[421702246,1778047907000,-500.0,0.00040548,60]
[421702256,1778047907000,-150.0,0.0004073,2]
[421702255,1778047907000,-150.0,0.0004073,2]
[421702261,1778047907000,-704.0,0.0004073,2]
[421702253,1778047907000,-554.35,0.00040568,120]
[421702262,1778047907000,-150.0,0.0004073,2]
[421702254,1778047907000,-554.35,0.00040668,120]
[421702252,1778047907000,-176.81839514,0.00040548,60]
[421702251,1778047907000,-500.0,0.00040548,60]
[421702250,1778047907000,-500.0,0.00040548,60]
[421702249,1778047907000,-500.0,0.00040548,60]
[421702260,1778047907000,-359.0,0.0004073,2]
[421702325,1778047908000,-554.35,0.00041668,120]
[421702327,1778047908000,-500.0,0.00041719,18]
[421702322,1778047908000,-202.45805464,0.0004164,60]
[421702324,1778047908000,-332.99,0.00041647,7]
[421702314,1778047908000,-554.35,0.00041468,120]
[421702331,1778047908000,-2500.0,0.000418,120]
[421702333,1778047908000,-700.0,0.00041825,120]
[421702330,1778047908000,-1098.137981,0.000418,120]
[421702332,1778047908000,-213.49,0.00041811,120]
[421702329,1778047908000,-500.0,0.00041775,95]
[421702323,1778047908000,-1560.0,0.00041644,120]
[421702326,1778047908000,-1142.1,0.00041694,120]
[421702344,1778047908000,-1046.98494811,0.00041866,30]
[421702335,1778047908000,-246.92,0.00041829,120]
[421702336,1778047908000,-150.0,0.0004183,30]
[421702345,1778047908000,-554.35,0.00041868,120]
[421702334,1778047908000,-500.0,0.00041825,13]
[421702337,1778047908000,-1938.10029955,0.0004183,30]
[421702338,1778047908000,-150.0,0.0004183,30]
[421702341,1778047908000,-416.57,0.00041866,120]
[421702339,1778047908000,-245.49086411,0.0004183,30]
[421702343,1778047908000,-215.64,0.00041866,120]
[421702340,1778047908000,-2005.9555727,0.00041836,30]
[421702342,1778047908000,-213.48,0.00041866,120]
[421702321,1778047908000,-554.35,0.00041568,120]
[421702328,1778047908000,-554.35,0.00041768,120]
[421702320,1778047908000,-150.0,0.00041558,120]
[421702303,1778047908000,-174.85,0.0004128,120]
[421702315,1778047908000,-2500.0,0.000415,120]
[421702347,1778047908000,-250.24,0.00041898,30]
[421702298,1778047908000,-152.0,0.00041191,9]
[421702291,1778047908000,-175.627278,0.00041096,60]
[421702296,1778047908000,-200.0,0.00041096,20]
[421702295,1778047908000,-151.0,0.00041096,120]
[421702293,1778047908000,-156.203094,0.00041096,120]
[421702292,1778047908000,-175.627278,0.00041096,60]
[421702297,1778047908000,-554.35,0.00041168,120]
[421702294,1778047908000,-151.0,0.00041096,120]
[421702300,1778047908000,-25092.44720804,0.00041209,70]
[421702301,1778047908000,-500.0,0.00041227,5]
[421702305,1778047908000,-310.0,0.00041293,90]
[421702302,1778047908000,-554.35,0.00041268,120]
[421702304,1778047908000,-163.0,0.00041291,11]
[421702309,1778047908000,-554.35,0.00041368,120]
[421702306,1778047908000,-350.0,0.00041301,6]
[421702307,1778047908000,-500.0,0.0004131,91]
[421702308,1778047908000,-5825.59664551,0.00041357,2]
[421702317,1778047908000,-500.0,0.000415,45]
[421702311,1778047908000,-192.0,0.00041425,90]
[421702318,1778047908000,-500.0,0.000415,45]
[421702319,1778047908000,-200.0,0.00041528,120]
[421702310,1778047908000,-266.35,0.000414,30]
[421702313,1778047908000,-163.0,0.00041465,11]
[421702312,1778047908000,-350.0,0.00041429,2]
[421702316,1778047908000,-153.0,0.000415,120]
[421702352,1778047908000,-150.54233273,0.000419,120]
[421702299,1778047908000,-2500.0,0.000412,120]
[421702353,1778047908000,-150.54233273,0.000419,120]
[421702380,1778047908000,-500.0,0.00042,45]
[421702381,1778047908000,-500.0,0.00042,45]
[421702382,1778047908000,-500.0,0.00042,45]
[421702387,1778047908000,-500.0,0.00042,45]
[421702388,1778047908000,-500.0,0.00042,45]
[421702386,1778047908000,-500.0,0.00042,45]
[421702385,1778047908000,-500.0,0.00042,45]
[421702383,1778047908000,-500.0,0.00042,45]
[421702384,1778047908000,-500.0,0.00042,45]
[421702392,1778047908000,-500.0,0.00042,45]
[421702390,1778047908000,-500.0,0.00042,45]
[421702391,1778047908000,-500.0,0.00042,45]
[421702389,1778047908000,-500.0,0.00042,45]
[421702394,1778047908000,-500.0,0.00042,45]
[421702393,1778047908000,-500.0,0.00042,45]
[421702396,1778047908000,-500.0,0.00042,45]
[421702395,1778047908000,-500.0,0.00042,45]
[421702397,1778047908000,-500.0,0.00042,45]
[421702399,1778047908000,-73732.17,0.00042,7]
[421702398,1778047908000,-4500.0,0.00042,30]
[421702401,1778047908000,-3819.48820206,0.00042,120]
[421702400,1778047908000,-183.0,0.00042,2]
[421702403,1778047908000,-50000.0,0.00042,120]
[421702404,1778047908000,-5005.65480192,0.00042,30]
[421702405,1778047908000,-1272.70155321,0.00042,30]
[421702378,1778047908000,-500.0,0.00042,45]
[421702379,1778047908000,-500.0,0.00042,45]
[421702402,1778047908000,-971.15852387,0.00042,120]
[421702375,1778047908000,-500.0,0.00042,45]
[421702377,1778047908000,-500.0,0.00042,45]
[421702351,1778047908000,-150.54233273,0.000419,120]
[421702355,1778047908000,-1934.38338737,0.00041916,30]
[421702356,1778047908000,-350.0,0.00041929,2]
[421702354,1778047908000,-150.54233273,0.000419,120]
[421702348,1778047908000,-156.76,0.000419,30]
[421702349,1778047908000,-1800.0,0.000419,15]
[421702350,1778047908000,-150.5423328,0.000419,120]
[421702358,1778047908000,-151.0,0.00041997,14]
[421702357,1778047908000,-554.35,0.00041968,120]
[421702360,1778047908000,-50000.0,0.00042,120]
[421702359,1778047908000,-500.0,0.00041999,90]
[421702366,1778047908000,-500.0,0.00042,45]
[421702346,1778047908000,-500.0,0.00041889,93]
[421702364,1778047908000,-500.0,0.00042,45]
[421702361,1778047908000,-500.0,0.00042,45]
[421702372,1778047908000,-500.0,0.00042,45]
[421702374,1778047908000,-500.0,0.00042,45]
[421702371,1778047908000,-500.0,0.00042,45]
[421702370,1778047908000,-500.0,0.00042,45]
[421702373,1778047908000,-500.0,0.00042,45]
[421702368,1778047908000,-500.0,0.00042,45]
[421702369,1778047908000,-500.0,0.00042,45]
[421702362,1778047908000,-500.0,0.00042,45]
[421702365,1778047908000,-500.0,0.00042,45]
[421702367,1778047908000,-500.0,0.00042,45]
[421702363,1778047908000,-500.0,0.00042,45]
[421702376,1778047908000,-500.0,0.00042,45]
[421702448,1778047909000,-278.092369,0.0004235,120]
[421702433,1778047909000,-1131.05,0.00042272,2]
[421702436,1778047909000,-150.0,0.00042278,120]
[421702437,1778047909000,-161.0,0.000423,120]
[421702430,1778047909000,-1660.45,0.00042192,120]
[421702434,1778047909000,-150.0,0.00042278,120]
[421702435,1778047909000,-150.0,0.00042278,120]
[421702439,1778047909000,-136657.0,0.000423,60]
[421702441,1778047909000,-500.0,0.00042312,15]
[421702442,1778047909000,-1142.1,0.00042347,120]
[421702444,1778047909000,-100348.33562918,0.0004235,60]
[421702445,1778047909000,-278.092369,0.0004235,120]
[421702443,1778047909000,-500.0,0.00042348,110]
[421702446,1778047909000,-278.092369,0.0004235,120]
[421702429,1778047909000,-500.0,0.00042182,4]
[421702449,1778047909000,-649.209857,0.0004235,120]
[421702447,1778047909000,-278.092369,0.0004235,120]
[421702453,1778047909000,-269.120346,0.0004235,120]
[421702450,1778047909000,-649.209857,0.0004235,120]
[421702451,1778047909000,-269.120346,0.0004235,120]
[421702454,1778047909000,-151.0,0.0004235,30]
[421702440,1778047909000,-5432.2,0.000423,30]
[421702431,1778047909000,-151.0,0.00042197,14]
[421702422,1778047909000,-260.68,0.00042168,14]
[421702427,1778047909000,-2000.0,0.0004218,120]
[421702452,1778047909000,-649.209857,0.0004235,120]
[421702406,1778047909000,-500.0,0.00042,45]
[421702415,1778047909000,-151.0,0.0004209,60]
[421702410,1778047909000,-500.0,0.00042,45]
[421702407,1778047909000,-500.0,0.00042,45]
[421702409,1778047909000,-500.0,0.00042,45]
[421702408,1778047909000,-500.0,0.00042,45]
[421702411,1778047909000,-554.35,0.00042068,120]
[421702413,1778047909000,-151.0,0.0004209,120]
[421702414,1778047909000,-151.0,0.0004209,60]
[421702432,1778047909000,-554.35,0.00042268,120]
[421702412,1778047909000,-47459.74175328,0.0004209,2]
[421702420,1778047909000,-554.35,0.00042168,120]
[421702416,1778047909000,-500.0,0.00042109,102]
[421702419,1778047909000,-150.0,0.0004214,120]
[421702417,1778047909000,-150.0,0.0004214,120]
[421702425,1778047909000,-2000.0,0.0004218,120]
[421702421,1778047909000,-10626.36,0.00042168,14]
[421702426,1778047909000,-2000.0,0.0004218,120]
[421702423,1778047909000,-310.0,0.0004218,95]
[421702428,1778047909000,-2000.0,0.0004218,120]
[421702438,1778047909000,-153.0,0.000423,120]
[421702418,1778047909000,-150.0,0.0004214,120]
[421702424,1778047909000,-2000.0,0.0004218,120]
[421702456,1778047909000,-269.120346,0.0004235,120]
[421702458,1778047909000,-151.0,0.0004235,30]
[421702484,1778047909000,-205.440149,0.000424,120]
[421702485,1778047909000,-205.440149,0.000424,120]
[421702486,1778047909000,-500.0,0.000424,97]
[421702488,1778047909000,-500.0,0.00042449,70]
[421702490,1778047909000,-418.0,0.00042453,2]